bitfinex/quotes_BTCUSD_20230110
["timestamp","ask_amount","ask_price","bid_price","bid_amount"]
[1673376546894,3.3546457,17423.0,17422.0,0.07704523]
[1673376547403,2.83808747,17423.0,17422.0,0.07704523]
[1673376547909,2.8375141,17423.0,17422.0,0.07704523]
[1673376548902,2.83694073,17423.0,17422.0,0.07704523]
[1673376549922,2.83636736,17423.0,17422.0,0.07704523]
[1673376550930,2.83580576,17423.0,17422.0,0.07704523]
[1673376551966,2.63511728,17423.0,17422.0,0.65055786]
[1673376552476,3.06509909,17423.0,17422.0,0.65055786]
[1673376552964,3.06441061,17423.0,17422.0,0.65055786]
[1673376553935,3.06383724,17423.0,17422.0,0.65055786]
[1673376554879,3.06326387,17423.0,17422.0,0.65055786]
[1673376555132,2.44311403,17423.0,17422.0,0.65055786]
[1673376555697,2.08361103,17423.0,17422.0,0.65055786]
[1673376555952,2.63298898,17423.0,17422.0,0.07704523]
[1673376556224,3.14954721,17423.0,17422.0,0.07704523]
[1673376556973,3.12104721,17423.0,17422.0,0.07704523]
[1673376557476,2.60448898,17423.0,17422.0,0.07704523]
[1673376557969,2.6038005,17423.0,17422.0,0.07704523]
[1673376558718,3.11976754,17423.0,17422.0,0.07704523]
[1673376558932,3.11907906,17423.0,17422.0,0.07704523]
[1673376559455,2.60311202,17423.0,17422.0,0.07704523]
[1673376559694,3.11909822,17423.0,17422.0,0.07704523]
[1673376559942,2.78569174,17423.0,17422.0,0.07704523]
[1673376560187,3.11841014,17423.0,17422.0,0.07704523]
[1673376560426,3.11840414,17423.0,17422.0,0.07704523]
[1673376560923,2.75821266,17423.0,17422.0,0.07704523]
[1673376561169,2.24223206,17423.0,17422.0,0.07704523]
[1673376561989,2.60104658,17423.0,17421.0,5.03560569]
[1673376562244,2.60080096,17423.0,17422.0,0.003]
[1673376562497,3.16753381,17423.0,17422.0,0.003]
[1673376563020,3.11784533,17423.0,17421.0,4.05221735]
[1673376563265,0.89831555,17422.0,17421.0,4.06221735]
[1673376563511,1.9841214,17422.0,17421.0,4.05221735]
[1673376563802,0.81635497,17422.0,17421.0,3.52734998]
[1673376564037,0.4299935,17422.0,17421.0,3.52734998]
[1673376564549,0.4299935,17422.0,17421.0,3.88685298]
[1673376564550,0.17199344,17422.0,17421.0,3.88685298]
[1673376564801,0.17130496,17422.0,17421.0,3.89585298]
[1673376565058,0.25800006,17423.0,17421.0,3.52734998]
[1673376565354,0.34400557,17424.0,17423.0,0.2]
[1673376565355,0.60200563,17424.0,17423.0,0.2]
[1673376565572,1.17018389,17425.0,17423.0,0.724403]
[1673376565818,1.17018389,17425.0,17424.0,0.359503]
[1673376565819,0.60200563,17425.0,17424.0,0.359503]
[1673376566349,0.60200563,17425.0,17423.0,0.3649]
[1673376566572,0.003,17424.0,17423.0,0.3039]
[1673376566819,0.003,17424.0,17423.0,0.139]
[1673376567309,0.25800006,17424.0,17423.0,0.6916966]
[1673376567564,0.60500563,17425.0,17424.0,0.08]
[1673376567815,0.60200563,17425.0,17423.0,0.6916966]
[1673376568066,0.00242644,17424.0,17423.0,0.8306966]
[1673376568557,0.00242644,17424.0,17423.0,1.3901996]
[1673376568801,0.60200563,17425.0,17423.0,1.2511996]
[1673376569051,0.60500563,17425.0,17424.0,0.440503]
[1673376569300,0.60200563,17425.0,17423.0,0.8916966]
[1673376569556,0.003,17424.0,17423.0,1.0306966]
[1673376569823,0.003,17424.0,17423.0,1.03135843]
[1673376570102,0.003,17424.0,17423.0,1.39086143]
[1673376570430,0.25800006,17425.0,17423.0,1.05186143]
[1673376570647,0.90200563,17424.0,17423.0,0.6916966]
[1673376570902,1.70539353,17424.0,17423.0,0.6916966]
[1673376571150,2.03449353,17424.0,17423.0,0.6916966]
[1673376571424,2.17874029,17424.0,17423.0,0.6916966]
[1673376571925,2.17805181,17424.0,17422.0,0.52680788]
[1673376572181,1.28515075,17423.0,17422.0,0.52680788]
[1673376572440,2.43305675,17423.0,17422.0,0.52680788]
[1673376572694,2.32856075,17423.0,17422.0,0.52680788]
[1673376572951,2.11369291,17423.0,17422.0,0.52680788]
[1673376573194,2.11369047,17423.0,17422.0,0.52680788]
[1673376573470,2.41369047,17423.0,17422.0,0.52680788]
[1673376573718,2.41369047,17423.0,17422.0,0.53580788]
[1673376573972,2.41300199,17423.0,17422.0,0.53580788]
[1673376574965,2.41231351,17423.0,17422.0,0.53580788]
[1673376575879,2.41162503,17423.0,17422.0,0.53580788]
[1673376576365,2.54132473,17423.0,17422.0,0.53580788]
[1673376576624,2.11164085,17423.0,17422.0,0.53580788]
[1673376576925,2.11095501,17423.0,17422.0,0.53580788]
[1673376577130,2.32512398,17423.0,17422.0,0.53580788]
[1673376577886,2.6244355,17423.0,17422.0,0.53580788]
[1673376578895,2.5814461,17423.0,17422.0,0.53580788]
[1673376579150,2.62374773,17423.0,17422.0,0.53580788]
[1673376579401,2.5814461,17423.0,17422.0,0.53580788]
[1673376579896,2.58075762,17423.0,17422.0,0.53580788]
[1673376580889,2.58006914,17423.0,17422.0,0.53580788]
[1673376581377,2.62237283,17423.0,17422.0,0.53580788]
[1673376581621,2.58006914,17423.0,17422.0,0.53580788]
[1673376581875,2.62168502,17423.0,17422.0,0.53580788]
[1673376582389,2.27792526,17423.0,17422.0,0.53580788]
[1673376582639,2.62173298,17423.0,17422.0,0.52680788]
[1673376582898,2.6670445,17423.0,17422.0,0.52980788]
[1673376583879,2.66635602,17423.0,17422.0,0.52980788]
[1673376584655,2.26047019,17423.0,17422.0,0.52980788]
[1673376584910,1.38582871,17423.0,17422.0,0.52980788]
[1673376585152,0.81187571,17423.0,17422.0,0.12528]
[1673376585407,0.046,17423.0,17422.0,0.83625766]
[1673376585663,0.046,17423.0,17422.0,0.72246089]
[1673376585917,0.04531152,17423.0,17422.0,1.961955]
[1673376586163,0.17190018,17425.0,17422.0,1.958955]
[1673376586435,0.17190018,17425.0,17424.0,0.1638]
[1673376586436,0.42975665,17425.0,17424.0,0.1638]
[1673376586700,0.17190018,17425.0,17424.0,0.523303]
[1673376587704,0.17190018,17425.0,17424.0,0.08]
[1673376587705,0.17490018,17425.0,17424.0,0.08]
[1673376588463,0.17490018,17425.0,17424.0,0.59435048]
[1673376588965,0.43275665,17425.0,17424.0,0.59435048]
[1673376589462,0.17490018,17425.0,17424.0,0.59435048]
[1673376592289,0.17490018,17425.0,17424.0,0.2449]
[1673376592560,0.003,17425.0,17424.0,2.081945]
[1673376593077,0.003,17425.0,17424.0,2.11824159]
[1673376594300,3.10965972,17429.0,17425.0,0.2]
[1673376594558,0.44015972,17429.0,17427.0,0.1636]
[1673376594820,0.18230325,17429.0,17428.0,0.359503]
[1673376595076,0.44015972,17429.0,17428.0,0.359503]
[1673376595328,0.18230325,17429.0,17427.0,0.737401]
[1673376595584,0.18830325,17429.0,17427.0,0.748401]
[1673376596100,0.18230325,17429.0,17428.0,0.50545542]
[1673376596349,0.74015972,17429.0,17428.0,0.50545542]
[1673376596626,0.74615972,17429.0,17428.0,0.51645542]
[1673376596900,0.44615972,17429.0,17428.0,0.51645542]
[1673376597416,0.94615972,17429.0,17428.0,0.51645542]
[1673376597667,1.48722307,17429.0,17426.0,0.60868467]
[1673376597927,0.37152587,17428.0,17427.0,0.06]
[1673376598217,1.24531487,17428.0,17426.0,0.60868467]
[1673376598456,0.3,17427.0,17424.0,0.20109659]
[1673376598728,0.3,17427.0,17425.0,0.70064473]
[1673376598729,0.14013479,17426.0,17425.0,0.70064473]
[1673376598980,2.49650962,17427.0,17426.0,0.06]
[1673376599238,2.49650962,17427.0,17425.0,0.70064473]
[1673376599490,2.75436609,17427.0,17425.0,0.70064473]
[1673376599827,2.49650962,17427.0,17425.0,0.70064473]
[1673376600009,2.76036609,17427.0,17426.0,0.003]
[1673376600298,2.59546609,17427.0,17426.0,0.003]
[1673376600831,2.95496909,17427.0,17426.0,0.003]
[1673376601108,0.2,17426.0,17425.0,0.70064473]
[1673376601354,0.37158079,17426.0,17425.0,0.70064473]
[1673376601848,2.58951601,17427.0,17425.0,0.69807973]
[1673376602126,2.58949601,17427.0,17425.0,0.69807973]
[1673376602367,0.2,17426.0,17425.0,0.69807973]
[1673376602621,2.01565401,17427.0,17425.0,0.75807973]
[1673376602880,0.74542279,17427.0,17425.0,0.69807973]
[1673376603096,0.573842,17427.0,17425.0,0.69807973]
[1673376603649,0.74542279,17427.0,17425.0,0.69807973]
[1673376603926,0.74542279,17427.0,17425.0,0.75807973]
[1673376605159,0.573842,17427.0,17425.0,0.75807973]
[1673376605415,2.44839602,17428.0,17425.0,0.75807973]
[1673376605416,1.67458002,17428.0,17425.0,0.75807973]
[1673376605664,1.41672355,17428.0,17425.0,0.99575762]
[1673376606167,1.41672355,17428.0,17425.0,0.69807973]
[1673376606422,1.41672355,17428.0,17426.0,0.51243191]
[1673376607211,0.47158079,17427.0,17426.0,0.51243191]
[1673376607513,0.67158079,17427.0,17426.0,0.51243191]
[1673376609022,0.67858079,17427.0,17426.0,0.51243191]
[1673376609271,0.007,17427.0,17426.0,0.51243191]
[1673376609533,0.007,17427.0,17426.0,0.87193491]
[1673376610306,0.007,17427.0,17426.0,0.51243191]
[1673376610809,0.63284606,17428.0,17426.0,0.64543191]
[1673376612085,2.08739833,17429.0,17426.0,0.64543191]
[1673376612342,2.6439952,17429.0,17427.0,0.65814902]
[1673376612660,0.73858073,17429.0,17427.0,0.65814902]
[1673376613372,0.93858073,17429.0,17427.0,0.65814902]
[1673376614111,0.93858073,17429.0,17427.0,0.71814902]
[1673376614616,1.1964372,17429.0,17427.0,0.71814902]
[1673376616623,0.9964372,17429.0,17427.0,0.71814902]
[1673376617919,1.1964372,17429.0,17427.0,0.71814902]
[1673376618138,0.9964372,17429.0,17427.0,0.71814902]
[1673376618650,0.73858073,17429.0,17427.0,0.71814902]
[1673376618910,0.01040307,17429.0,17428.0,0.67300598]
[1673376619157,0.01040307,17429.0,17428.0,1.03250898]
[1673376619718,0.01040307,17429.0,17428.0,1.23250898]
[1673376620477,0.01040307,17429.0,17428.0,1.28850898]
[1673376620690,0.01040307,17429.0,17428.0,1.23250898]
[1673376620972,0.01040307,17429.0,17428.0,1.36150898]
[1673376621232,0.01040307,17429.0,17428.0,1.93529798]
[1673376621494,0.01040307,17429.0,17428.0,1.426292]
[1673376621742,0.01040307,17429.0,17428.0,3.17718591]
[1673376622006,0.01040307,17429.0,17428.0,3.22971158]
[1673376622528,0.01040307,17429.0,17428.0,2.61535644]
[1673376623030,0.01040307,17429.0,17428.0,3.31440449]
[1673376623283,0.01040307,17429.0,17428.0,2.78025644]
[1673376624822,0.01030084,17429.0,17428.0,2.78025644]
[1673376626110,0.01030084,17429.0,17428.0,3.17992734]
[1673376626355,0.01030084,17429.0,17428.0,2.61625644]
[1673376627116,0.01030084,17429.0,17428.0,3.31088314]
[1673376627373,0.01030084,17429.0,17428.0,2.78075644]
[1673376627631,0.01900667,17430.0,17429.0,0.2]
[1673376627903,0.01900667,17430.0,17429.0,2.07453444]
[1673376628669,0.01900667,17430.0,17429.0,1.82453444]
[1673376629413,0.01900667,17430.0,17429.0,1.88053444]
[1673376630164,0.01900667,17430.0,17429.0,1.82453444]
[1673376630419,0.01900667,17430.0,17429.0,1.96353444]
[1673376630672,0.01900667,17430.0,17429.0,2.23469044]
[1673376630920,0.01900667,17430.0,17429.0,3.52142956]
[1673376631941,0.01410555,17431.0,17430.0,0.34961934]
[1673376632211,0.01410555,17431.0,17430.0,3.78249286]
[1673376632430,0.01410555,17431.0,17430.0,2.63475374]
[1673376632997,0.01410555,17431.0,17430.0,2.32712032]
[1673376633765,0.01410555,17431.0,17430.0,2.18712032]
[1673376634027,0.01410555,17431.0,17430.0,2.32612032]
[1673376635547,0.01410555,17431.0,17430.0,2.89052316]
[1673376636313,0.01410555,17431.0,17430.0,2.66972316]
[1673376636592,0.01410555,17431.0,17430.0,2.71434767]
[1673376637076,0.01410555,17431.0,17430.0,2.10532032]
[1673376637332,0.01410555,17431.0,17430.0,2.7027302]
[1673376638080,0.01410555,17431.0,17430.0,2.5027302]
[1673376638582,0.01410555,17431.0,17430.0,1.12325222]
[1673376639632,0.01410555,17431.0,17430.0,0.76374922]
[1673376640160,0.01410555,17431.0,17430.0,1.12313522]
[1673376641984,0.01410555,17431.0,17430.0,0.76374922]
[1673376644311,0.01410555,17431.0,17430.0,0.62474922]
[1673376644813,0.55792009,17431.0,17430.0,0.62474922]
[1673376645314,0.55892009,17431.0,17430.0,0.16633934]
[1673376645564,0.55792009,17431.0,17430.0,0.02733934]
[1673376646327,0.55792009,17431.0,17430.0,0.09033934]
[1673376646579,2.07227688,17431.0,17430.0,0.09033934]
[1673376647183,2.90382335,17431.0,17430.0,0.09033934]
[1673376647636,3.24763107,17431.0,17430.0,0.09033934]
[1673376647886,3.07605028,17431.0,17430.0,0.09033934]
[1673376648693,3.10648789,17431.0,17430.0,0.09033934]
[1673376648951,3.10649005,17431.0,17430.0,0.09033934]
[1673376649710,3.53618975,17431.0,17430.0,0.09033934]
[1673376649964,3.10649005,17431.0,17430.0,0.09033934]
[1673376652503,1.94972168,17431.0,17430.0,0.09033934]
[1673376652727,1.69244233,17431.0,17430.0,0.09033934]
[1673376653014,0.75936633,17431.0,17430.0,0.09033934]
[1673376654755,1.37603168,17431.0,17430.0,0.09033934]
[1673376654980,1.87603168,17431.0,17430.0,0.09033934]
[1673376655250,2.44972168,17431.0,17430.0,0.09025453]
[1673376655741,1.87603168,17431.0,17430.0,0.09025453]
[1673376656268,1.21664568,17431.0,17430.0,0.09025453]
[1673376657267,1.57603168,17431.0,17430.0,0.09025453]
[1673376657548,1.87603168,17431.0,17430.0,0.09025453]
[1673376658034,2.2198394,17431.0,17430.0,0.09025453]
[1673376658282,1.57603168,17431.0,17430.0,0.09025453]
[1673376658777,1.21664568,17431.0,17430.0,0.09025453]
[1673376659043,1.57603168,17431.0,17430.0,0.09025453]
[1673376659317,2.04826862,17431.0,17430.0,0.063]
[1673376659816,1.74826862,17431.0,17430.0,0.063]
[1673376660091,2.04826862,17431.0,17430.0,0.063]
[1673376660338,2.22068897,17431.0,17430.0,0.063]
[1673376660592,2.89378703,17431.0,17430.0,0.063]
[1673376662623,2.84852356,17431.0,17430.0,0.063]
[1673376664015,3.10605549,17431.0,17430.0,0.063]
[1673376664275,2.84852356,17431.0,17430.0,0.063]
[1673376664528,2.89335038,17431.0,17430.0,0.063]
[1673376665857,2.84852356,17431.0,17430.0,0.063]
[1673376666118,2.89334534,17431.0,17430.0,0.063]
[1673376666433,2.84852356,17431.0,17430.0,0.063]
[1673376666696,2.67633154,17431.0,17430.0,0.063]
[1673376668261,2.37633154,17431.0,17430.0,0.063]
[1673376668511,1.84479335,17431.0,17430.0,0.063]
[1673376669336,2.50418916,17431.0,17430.0,0.063]
[1673376669585,2.20418916,17431.0,17430.0,0.063]
[1673376670081,2.37633154,17431.0,17430.0,0.063]
[1673376671414,2.67633154,17431.0,17430.0,0.063]
[1673376671628,3.10603124,17431.0,17430.0,0.063]
[1673376671913,3.10613863,17431.0,17430.0,0.063]
[1673376672165,2.67643893,17431.0,17430.0,0.063]
[1673376673667,2.84852356,17431.0,17430.0,0.063]
[1673376673922,1.81713124,17431.0,17430.0,0.063]
[1673376674442,1.07142392,17431.0,17430.0,0.063]
[1673376675534,1.24344124,17431.0,17430.0,0.063]
[1673376676755,1.24344124,17431.0,17430.0,0.73098408]
[1673376676992,1.07150464,17431.0,17430.0,0.73098408]
[1673376677241,1.41531259,17431.0,17430.0,0.73098408]
[1673376677484,1.24344124,17431.0,17430.0,0.73098408]
[1673376677730,1.46147839,17431.0,17430.0,0.063]
[1673376677971,2.12086439,17431.0,17430.0,0.063]
[1673376678224,1.41767067,17431.0,17430.0,0.063]
[1673376678502,1.61767067,17431.0,17430.0,0.063]
[1673376678755,1.31767067,17431.0,17430.0,0.063]
[1673376679042,2.19136067,17431.0,17430.0,0.0947455]
[1673376679293,2.28504697,17431.0,17430.0,0.09464061]
[1673376679541,2.85873697,17431.0,17430.0,0.09464061]
[1673376680036,2.49935097,17431.0,17430.0,0.09464061]
[1673376680534,2.42930601,17431.0,17430.0,0.09464061]
[1673376680797,1.85561601,17431.0,17430.0,0.09464061]
[1673376681563,1.28192601,17431.0,17430.0,0.09464061]
[1673376682065,1.6259595,17431.0,17430.0,0.09464061]
[1673376684127,0.95209408,17431.0,17430.0,0.09464061]
[1673376684682,0.78018895,17431.0,17430.0,0.7343053]
[1673376690456,0.44416784,17431.0,17430.0,0.7343053]
[1673376690700,0.61618895,17431.0,17430.0,0.7343053]
[1673376691466,1.04614399,17431.0,17430.0,0.7343053]
[1673376691723,0.78809408,17431.0,17430.0,0.7343053]
[1673376691982,0.83360924,17431.0,17430.0,0.7343053]
[1673376692227,0.78809408,17431.0,17430.0,0.7343053]
[1673376692725,0.61615479,17431.0,17430.0,0.7343053]
[1673376692948,0.83223752,17431.0,17430.0,0.7343053]
[1673376693233,0.83223635,17431.0,17430.0,0.7343053]
[1673376693486,0.78809408,17431.0,17430.0,0.7343053]
[1673376693749,0.83223615,17431.0,17430.0,0.7343053]
[1673376694011,0.48820266,17431.0,17430.0,0.09464061]
[1673376694267,0.78813108,17431.0,17430.0,0.09464061]
[1673376694512,0.98813108,17431.0,17430.0,0.09464061]
[1673376695291,0.68813108,17431.0,17430.0,0.09464061]
[1673376696054,0.83215014,17431.0,17430.0,0.09464061]
[1673376696578,0.78800807,17431.0,17430.0,0.09464061]
[1673376696832,0.61606417,17431.0,17430.0,0.09464061]
[1673376697081,0.61606331,17431.0,17430.0,0.09464061]
[1673376697332,0.83213962,17431.0,17430.0,0.09464061]
[1673376699361,0.48812056,17431.0,17430.0,0.09464061]
[1673376699614,0.98812056,17431.0,17430.0,0.09464061]
[1673376701021,0.55816552,17431.0,17430.0,0.09464061]
[1673376701265,0.98821451,17431.0,17430.0,0.09464061]
[1673376701770,0.68821451,17431.0,17430.0,0.09464061]
[1673376703335,0.55816552,17431.0,17430.0,0.09464061]
[1673376704128,0.6882265,17431.0,17430.0,0.09464061]
[1673376705856,0.9882265,17431.0,17430.0,0.09464061]
[1673376706127,0.55816552,17431.0,17430.0,0.09464061]
[1673376707127,0.25816552,17431.0,17430.0,0.09464061]
[1673376707827,0.68829697,17431.0,17430.0,0.09464061]
[1673376708076,0.68829678,17431.0,17430.0,0.09464061]
[1673376709106,0.55816552,17431.0,17430.0,0.09464061]
[1673376709859,0.25816552,17431.0,17430.0,0.09464061]
[1673376710787,0.55816552,17431.0,17430.0,0.09464061]
[1673376711029,1.19642823,17431.0,17430.0,0.09464061]
[1673376712533,1.55581423,17431.0,17430.0,0.09464061]
[1673376713040,1.19642823,17431.0,17430.0,0.09464061]
[1673376713288,1.71240883,17431.0,17430.0,0.09464061]
[1673376713500,1.19642823,17431.0,17430.0,0.09464061]
[1673376714053,2.81018483,17431.0,17430.0,0.09464061]
[1673376714832,3.55219048,17431.0,17430.0,0.09464061]
[1673376715388,3.30062036,17431.0,17430.0,0.09464061]
[1673376715640,3.10468435,17431.0,17430.0,0.09464061]
[1673376715905,3.10468435,17431.0,17430.0,0.0317455]
[1673376716143,3.11768435,17431.0,17430.0,0.0427455]
[1673376716410,3.10468435,17431.0,17430.0,0.0316517]
[1673376716658,3.11768435,17431.0,17430.0,0.0426517]
[1673376717180,3.56545568,17431.0,17430.0,0.0426517]
[1673376717424,3.76139169,17431.0,17430.0,0.0426517]
[1673376717922,3.04963886,17431.0,17430.0,0.0426517]
[1673376718172,3.42296954,17431.0,17430.0,0.0426517]
[1673376718442,3.17113422,17431.0,17430.0,0.0426517]
[1673376718698,3.49099256,17431.0,17430.0,0.0426517]
[1673376719012,3.17113422,17431.0,17430.0,0.0426517]
[1673376719207,2.97519821,17431.0,17430.0,0.0426517]
[1673376719752,2.40593152,17431.0,17430.0,0.0426517]
[1673376719973,3.90228199,17431.0,17430.0,0.0426517]
[1673376721205,3.4320679,17431.0,17430.0,0.0426517]
[1673376722196,4.12180389,17431.0,17430.0,0.0426517]
[1673376722431,3.29160352,17431.0,17430.0,0.0426517]
[1673376722709,3.09566751,17431.0,17430.0,0.0426517]
[1673376723196,3.61142033,17431.0,17430.0,0.0426517]
[1673376723947,3.61142033,17431.0,17430.0,0.03637184]
[1673376728017,3.08636656,17431.0,17430.0,0.03637184]
[1673376728799,3.35130213,17431.0,17430.0,0.03637184]
[1673376729299,2.77761213,17431.0,17430.0,0.03637184]
[1673376730800,0.83521865,17431.0,17430.0,0.56812008]
[1673376731075,0.6192553,17431.0,17430.0,0.92750608]
[1673376731309,0.447406,17431.0,17430.0,0.92750608]
[1673376731556,0.447406,17431.0,17430.0,0.56812008]
[1673376732056,0.434406,17431.0,17430.0,0.56012008]
[1673376732297,0.434406,17431.0,17430.0,0.55712008]
[1673376732791,0.434406,17431.0,17430.0,0.62012008]
[1673376736570,0.17660223,17431.0,17430.0,0.62012008]
[1673376737818,0.434406,17431.0,17430.0,0.62012008]
[1673376738806,0.17660223,17431.0,17430.0,0.62012008]
[1673376739329,0.17660223,17431.0,17430.0,0.61980624]
[1673376740835,0.434406,17431.0,17430.0,0.61980624]
[1673376741074,0.17660223,17431.0,17430.0,0.61980624]
[1673376741566,0.434406,17431.0,17430.0,0.61980624]
[1673376741815,0.17660223,17431.0,17430.0,0.61980624]
[1673376742815,0.00473302,17431.0,17430.0,0.61980624]
[1673376743071,0.17660223,17431.0,17430.0,0.61980624]
[1673376743559,1.27812451,17431.0,17430.0,0.61980624]
[1673376743810,1.1062553,17431.0,17430.0,0.61980624]
[1673376744308,1.8440136,17431.0,17430.0,0.088058]
[1673376744553,1.90565934,17431.0,17430.0,0.088058]
[1673376744814,1.88990159,17431.0,17430.0,0.088058]
[1673376745068,2.47934934,17431.0,17430.0,0.088058]
[1673376746574,2.11996334,17431.0,17430.0,0.088058]
[1673376748064,2.04971377,17431.0,17430.0,0.088058]
[1673376748579,1.98111377,17431.0,17430.0,0.088058]
[1673376749589,2.05127347,17431.0,17430.0,0.088058]
[1673376749865,1.83699497,17431.0,17430.0,0.088058]
[1673376750083,1.04803777,17431.0,17430.0,0.088058]
[1673376750326,1.40742377,17431.0,17430.0,0.088058]
[1673376750571,1.04803777,17431.0,17430.0,0.088058]
[1673376750833,1.83699951,17431.0,17430.0,0.088058]
[1673376751080,1.63224451,17431.0,17430.0,0.088058]
[1673376751335,1.47761351,17431.0,17430.0,0.088058]
[1673376751591,1.83699951,17431.0,17430.0,0.088058]
[1673376752104,2.41068951,17431.0,17430.0,0.088058]
[1673376752609,2.62499351,17431.0,17430.0,0.088058]
[1673376752866,2.55480377,17431.0,17430.0,0.088058]
[1673376753838,2.98435674,17431.0,17430.0,0.088058]
[1673376754103,2.9843781,17431.0,17430.0,0.088058]
[1673376754359,2.4106881,17431.0,17430.0,0.088058]
[1673376754867,1.98111377,17431.0,17430.0,0.088058]
[1673376755112,2.41066878,17431.0,17430.0,0.088058]
[1673376755357,1.98111377,17431.0,17430.0,0.088058]
[1673376755598,2.55480377,17431.0,17430.0,0.088058]
[1673376756351,3.07055659,17431.0,17430.0,0.088058]
[1673376757660,1.98111377,17431.0,17430.0,0.088058]
[1673376758447,1.62172777,17431.0,17430.0,0.088058]
[1673376758965,2.41074382,17431.0,17430.0,0.088058]
[1673376759482,2.05135782,17431.0,17430.0,0.088058]
[1673376759723,2.41074382,17431.0,17430.0,0.088058]
[1673376759978,1.98111377,17431.0,17430.0,0.088058]
[1673376760551,2.14571377,17431.0,17430.0,0.088058]
[1673376761264,1.78632777,17431.0,17430.0,0.088058]
[1673376761489,2.14571377,17431.0,17430.0,0.088058]
[1673376762267,1.78632777,17431.0,17430.0,0.088058]
[1673376762522,2.14571377,17431.0,17430.0,0.088058]
[1673376763020,1.94095877,17431.0,17430.0,0.088058]
[1673376763774,1.78632777,17431.0,17430.0,0.088058]
[1673376764265,2.14571377,17431.0,17430.0,0.088058]
[1673376765042,1.78632777,17431.0,17430.0,0.088058]
[1673376765577,2.14571377,17431.0,17430.0,0.088058]
[1673376766025,2.71940377,17431.0,17430.0,0.088058]
[1673376766264,2.36001777,17431.0,17430.0,0.088058]
[1673376766492,3.23515659,17431.0,17430.0,0.088058]
[1673376766988,2.66146659,17431.0,17430.0,0.088058]
[1673376767237,2.30208059,17431.0,17430.0,0.088058]
[1673376767482,2.66146659,17431.0,17430.0,0.088058]
[1673376767925,2.30208059,17431.0,17430.0,0.088058]
[1673376768229,2.66146659,17431.0,17430.0,0.088058]
[1673376768478,2.30208059,17431.0,17430.0,0.088058]
[1673376768728,2.66146659,17431.0,17430.0,0.088058]
[1673376768979,2.30208059,17431.0,17430.0,0.088058]
[1673376769238,2.66146659,17431.0,17430.0,0.088058]
[1673376769523,2.30208059,17431.0,17430.0,0.088058]
[1673376769774,1.78632777,17431.0,17430.0,0.088058]
[1673376770582,1.62172777,17431.0,17430.0,0.088058]
[1673376771352,1.62172777,17431.0,17430.0,0.08795837]
[1673376773160,0.91190475,17431.0,17430.0,0.08795837]
[1673376773422,1.34172582,17431.0,17430.0,0.08795837]
[1673376773674,0.91190475,17431.0,17430.0,0.08795837]
[1673376776183,1.48559475,17431.0,17430.0,0.08795837]
[1673376776854,1.68559475,17431.0,17430.0,0.08795837]
[1673376779878,2.20134757,17431.0,17430.0,0.08795837]
[1673376781148,2.56073357,17431.0,17430.0,0.08795837]
[1673376781904,2.20134757,17431.0,17430.0,0.08795837]
[1673376782150,2.04498075,17431.0,17430.0,0.08795837]
[1673376783148,1.84022575,17431.0,17430.0,0.08795837]
[1673376783397,1.68559475,17431.0,17430.0,0.08795837]
[1673376783650,2.04498075,17431.0,17430.0,0.08795837]
[1673376784905,1.68559475,17431.0,17430.0,0.08795837]
[1673376785159,2.04498075,17431.0,17430.0,0.08795837]
[1673376785907,2.62334165,17431.0,17430.0,0.08795837]
[1673376786158,3.19703165,17431.0,17430.0,0.08795837]
[1673376786416,2.62334165,17431.0,17430.0,0.08795837]
[1673376787701,3.19703165,17431.0,17430.0,0.08795837]
[1673376787982,3.36103165,17431.0,17430.0,0.08795837]
[1673376788720,3.36103165,17431.0,17430.0,0.02495837]
[1673376788976,3.37503165,17431.0,17430.0,0.02795837]
[1673376789227,3.36103165,17431.0,17430.0,0.02495837]
[1673376789490,3.37503165,17431.0,17430.0,0.03495837]
[1673376789747,2.79667075,17431.0,17430.0,0.03495837]
[1673376790252,2.76667075,17431.0,17430.0,0.03495837]
[1673376790750,3.28278023,17431.0,17430.0,0.03495837]
[1673376791003,2.92339423,17431.0,17430.0,0.03495837]
[1673376791272,3.28278023,17431.0,17430.0,0.03495837]
[1673376791548,1.88570423,17431.0,17430.0,0.03495837]
[1673376791831,1.68570423,17431.0,17430.0,0.03495837]
[1673376792066,0.59590475,17431.0,17430.0,0.03495837]
[1673376793092,0.89590475,17431.0,17430.0,0.03495837]
[1673376793840,0.59590475,17431.0,17430.0,0.03487834]
[1673376794101,0.49001641,17431.0,17430.0,0.63337624]
[1673376794391,0.83404099,17431.0,17430.0,0.63337624]
[1673376794919,0.615995,17431.0,17430.0,1.72998524]
[1673376795662,0.615995,17431.0,17430.0,1.37059924]
[1673376796212,0.601995,17431.0,17430.0,1.36059924]
[1673376796463,0.77506274,17431.0,17430.0,1.50059924]
[1673376796964,1.03299027,17431.0,17430.0,1.50059924]
[1673376797227,0.77506274,17431.0,17430.0,1.50059924]
[1673376797496,0.60295277,17431.0,17430.0,1.50059924]
[1673376798264,0.60295277,17431.0,17430.0,1.33709924]
[1673376798517,0.81637801,17431.0,17430.0,0.62337624]
[1673376798773,0.77235343,17431.0,17430.0,0.62337624]
[1673376798993,0.77335343,17431.0,17430.0,0.76337624]
[1673376799276,0.77235343,17431.0,17430.0,0.62337624]
[1673376799526,0.77335343,17431.0,17430.0,0.76337624]
[1673376799784,0.77235343,17431.0,17430.0,0.62337624]
[1673376800035,1.11623687,17431.0,17430.0,0.68737624]
[1673376800262,0.81623687,17431.0,17430.0,0.68737624]
[1673376800513,0.47235343,17431.0,17430.0,0.68737624]
[1673376800797,0.81623423,17431.0,17430.0,0.68737624]
[1673376802805,0.77235343,17431.0,17430.0,0.68737624]
[1673376803514,0.47235343,17431.0,17430.0,0.68737624]
[1673376804289,0.81620488,17431.0,17430.0,0.68737624]
[1673376804549,0.47235343,17431.0,17430.0,0.68737624]
[1673376804793,0.81620825,17431.0,17430.0,0.68737624]
[1673376806062,0.77389298,17431.0,17430.0,0.68737624]
[1673376806643,0.60172894,17431.0,17430.0,0.68737624]
[1673376810606,0.81619647,17431.0,17430.0,0.68737624]
[1673376810860,1.11619647,17431.0,17430.0,0.68737624]
[1673376816701,1.11619647,17431.0,17430.0,0.08887834]
[1673376816956,0.97234165,17431.0,17430.0,0.08887834]
[1673376817208,0.97234165,17431.0,17430.0,0.08880389]
[1673376819115,0.47234165,17431.0,17430.0,0.7867841]
[1673376819369,0.81613538,17431.0,17430.0,0.7867841]
[1673376819617,1.03167316,17431.0,17430.0,0.7867841]
[1673376820104,0.601635,17431.0,17430.0,0.7867841]
[1673376820851,1.03167316,17431.0,17430.0,0.7867841]
[1673376821098,0.77383189,17431.0,17430.0,0.7867841]
[1673376821908,0.60163146,17431.0,17430.0,0.7867841]
[1673376822865,0.77383189,17431.0,17430.0,0.7867841]
[1673376823377,1.31613493,17431.0,17430.0,0.7867841]
[1673376823627,0.9723412,17431.0,17430.0,0.08880389]